fUST/lending_fUST_20250109
["ID","MTS","AMOUNT","RATE_DAILY","PERIOD"]
[348224285,1736400638850,-520.93714097,0.00019452,3]
[348224286,1736400638859,-1542.41,0.00019452,3]
[348224287,1736400638868,-500.0,0.00019452,3]
[348224288,1736400638877,-18521.83,0.00019452,2]
[348224289,1736400638886,-1217.05,0.00019452,3]
[348224290,1736400638896,-500.0,0.00019452,3]
[348224291,1736400638908,-3790.36257309,0.00019452,3]
[348224292,1736400638919,-985.93824471,0.00019452,3]
[348224294,1736400640169,-1963.7891822,0.00019452,3]
[348224295,1736400640179,-500.0,0.00019452,3]
[348224296,1736400640188,-500.0,0.00019452,3]
[348224297,1736400640197,-500.0,0.00019452,3]
[348224298,1736400640207,-496.87,0.00019452,3]
[348224299,1736400640216,-501.62,0.00019452,3]
[348224300,1736400640225,-654.93,0.00019452,3]
[348224301,1736400640235,-377.81767268,0.00019452,3]
[348224302,1736400640244,-577.59,0.00019452,3]
[348224303,1736400640253,-500.0,0.00019452,3]
[348224304,1736400640262,-500.0,0.00019452,3]
[348224305,1736400640271,-408.0948888,0.00019452,3]
[348224306,1736400640283,-91.9051112,0.00019452,3]
[348224308,1736400640292,-402.08566828,0.00019452,3]
[348224311,1736400643058,-97.91433172,0.00019452,3]
[348224312,1736400643067,-500.0,0.00019452,3]
[348224313,1736400643078,-151.0,0.00019726,2]
[348224314,1736400643088,-168.812927,0.00019726,2]
[348224315,1736400643192,-151.0,0.00019726,2]
[348224316,1736400643201,-865.17,0.00019726,3]
[348224317,1736400643211,-764.93,0.00019726,3]
[348224318,1736400643220,-1406.53,0.00019726,3]
[348224320,1736400643230,-354.22890035,0.00019726,3]
[348224342,1736400646129,-502.9,0.00019726,3]
[348224344,1736401267926,747.75999999,0.00023203,61]
[348224345,1736401267947,503.13,0.00023203,61]
[348224346,1736401282729,1338.64989168,0.00022983,61]
[348224347,1736401282750,455.95999999,0.00022983,61]
[348224348,1736401317516,2842.42389576,0.0001501,2]
[348224349,1736401327347,160.231987,0.00013973,2]
[348224350,1736401402484,15621.48072345,0.00025,120]
[348224351,1736401550111,-199.945627,0.00018243,2]
[348224352,1736401550132,-714.31647778,0.000188,2]
[348224353,1736401627105,-859.34188858,0.00018246,2]
[348224354,1736401630149,-1432.42310003,0.00018246,2]
[348224355,1736401631091,-5414.11361844,0.00018246,2]
[348224356,1736401653160,-756.33512228,0.00018246,2]
[348224358,1736401774110,-5167.0108,0.00018246,2]
[348224359,1736401774152,-162.46520327,0.00018246,2]
[348224360,1736401774174,-300.0,0.00018799,2]
[348224361,1736401774197,-4510.05479673,0.000188,2]
[348224406,1736401836078,-1638.97718917,0.000188,2]
[348224414,1736401836146,-544.61088897,0.000188,2]
[348224417,1736401836196,-1778.56564325,0.000188,2]
[348224418,1736401838250,-380.93473712,0.000188,2]
[348224419,1736401838260,-183.30827915,0.00019078,2]
[348224420,1736401838270,-301.8540808,0.00019166,2]
[348224421,1736401838280,-156.315,0.00019177,2]
[348224422,1736401838290,-506.71743847,0.00019178,2]
[348224423,1736401838299,-154.72569775,0.00019178,2]
[348224424,1736401838310,-699.84,0.00019178,2]
[348224425,1736401838319,-500.0,0.00019178,2]
[348224426,1736401838329,-78.98476671,0.00019178,2]
[348224427,1736401838345,-421.01523329,0.00019178,2]
[348224428,1736401838355,-439.79478099,0.00019178,2]
[348224429,1736401838372,-97.2593546,0.00019178,2]
[348224430,1736401838381,-522.38,0.00019178,2]
[348224431,1736401838391,-500.41288902,0.00019178,2]
[348224432,1736401838401,-505.78244741,0.00019178,2]
[348224433,1736401838411,-1531.3,0.00019178,2]
[348224434,1736401838420,-500.0,0.00019178,2]
[348224435,1736401838430,-500.0,0.00019178,2]
[348224436,1736401838440,-510.92052446,0.00019178,2]
[348224437,1736401838449,-350.55732511,0.00019178,2]
[348224438,1736401838459,-500.0,0.00019178,2]
[348224439,1736401838469,-500.0,0.00019178,2]
[348224440,1736401838479,-447.91201352,0.00019178,2]
[348224441,1736401838488,-500.0,0.00019178,2]
[348224442,1736401838501,-500.0,0.00019178,2]
[348224443,1736401838511,-500.0,0.00019178,2]
[348224444,1736401838520,-500.0,0.00019178,2]
[348224445,1736401838530,-500.0,0.00019178,2]
[348224446,1736401838542,-500.0,0.00019178,2]
[348224447,1736401838552,-180.07994263,0.00019178,2]
[348224448,1736401838563,-500.0,0.00019178,2]
[348224449,1736401838576,-500.0,0.00019178,2]
[348224450,1736401838586,-500.0,0.00019178,2]
[348224451,1736401838597,-249.18797465,0.00019178,2]
[348224452,1736401838607,-500.0,0.00019178,2]
[348224453,1736401838617,-500.0,0.00019178,2]
[348224454,1736401838627,-500.0,0.00019178,2]
[348224455,1736401838638,-500.0,0.00019178,2]
[348224456,1736401838648,-500.0,0.00019178,2]
[348224457,1736401838658,-500.0,0.00019178,2]
[348224458,1736401838668,-2241.7984871,0.00019178,2]
[348224459,1736401838680,-14842.0015129,0.00019178,2]
[348224460,1736401838689,-500.0,0.00019178,2]
[348224461,1736401838699,-500.0,0.00019178,2]
[348224462,1736401838708,-224.29944625,0.00019178,2]
[348224463,1736401838718,-500.0,0.00019178,2]
[348224464,1736401838728,-500.0,0.00019178,2]
[348224465,1736401838737,-500.0,0.00019178,2]
[348224466,1736401838749,-1250.91,0.00019178,2]
[348224467,1736401838759,-500.0,0.00019178,2]
[348224468,1736401838769,-310.95731207,0.00019178,2]
[348224469,1736401838778,-500.0,0.00019178,2]
[348224470,1736401838789,-577.8660837,0.00019178,2]
[348224471,1736401838799,-500.0,0.00019178,2]
[348224472,1736401838810,-500.0,0.00019178,2]
[348224473,1736401838821,-500.0,0.00019178,2]
[348224474,1736401838832,-6559.29,0.00019178,2]
[348224475,1736401838841,-1302.44,0.00019178,2]
[348224476,1736401838852,-205.03992255,0.00019178,2]
[348224563,1736401840514,-294.96007745,0.00019178,2]
[348224565,1736401840523,-500.0,0.00019178,2]
[348224567,1736401840533,-500.0,0.00019178,2]
[348224569,1736401840544,-500.0,0.00019178,2]
[348224571,1736401840554,-374.68023567,0.00019178,2]
[348224700,1736401843293,-125.31976433,0.00019178,2]
[348224701,1736401843304,-500.0,0.00019178,2]
[348224702,1736401843314,-390.68023567,0.00019178,2]
[348224703,1736401843379,-109.31976433,0.00019178,2]
[348224704,1736401843388,-500.0,0.00019178,2]
[348224705,1736401843398,-500.0,0.00019178,2]
[348224706,1736401843410,-500.0,0.00019178,2]
[348224707,1736401843420,-509.6,0.00019178,2]
[348224708,1736401843430,-500.0,0.00019178,2]
[348224709,1736401843440,-609.3,0.00019178,2]
[348224710,1736401843450,-500.0,0.00019178,2]
[348224711,1736401843460,-798.74,0.00019178,2]
[348224712,1736401843470,-500.0,0.00019178,2]
[348224713,1736401843480,-677.13,0.00019178,2]
[348224714,1736401843490,-279.79768819,0.00019178,2]
[348224769,1736401846388,-220.20231181,0.00019178,2]
[348224771,1736401846397,-442.08768819,0.00019178,2]
[348225055,1736402185731,164.650655,0.00013973,2]
[348225056,1736402747117,-528.55741733,0.00018283,2]
[348225057,1736402750091,-268.7486186,0.00018283,2]
[348225058,1736402750115,-272.25801561,0.00018383,2]
[348225060,1736402838100,-3397.75232851,0.00018283,2]
[348225061,1736402838125,-767.93198439,0.00018383,2]
[348225062,1736402838149,-260.25067204,0.00018452,2]
[348225063,1736403026206,200.0,0.00015,2]
[348225120,1736403032634,-160.19472616,0.00018452,2]
[348225122,1736403032644,-234.64606162,0.000189,2]
[348225124,1736403032654,-2574.0,0.00018911,2]
[348225126,1736403032664,-300.0,0.00018911,2]
[348225128,1736403032673,-6520.13311658,0.00018912,2]
[348225169,1736403038338,-1040.19,0.00018,2]
[348225176,1736403038468,-470.03832373,0.00018,2]
[348225177,1736403038478,-4319.07504273,0.00018912,2]
[348225178,1736403038487,-503.0076962,0.00019173,2]
[348225179,1736403038496,-500.0,0.00019177,2]
[348225180,1736403038505,-236.06463845,0.00019177,2]
[348225181,1736403038514,-325.49103076,0.00019177,2]
[348225182,1736403038523,-463.56016847,0.00019177,2]
[348225183,1736403038532,-348.2280463,0.00019177,2]
[348225184,1736403038541,-198.52546693,0.00019177,2]
[348225185,1736403038550,-8954.59413986,0.00019177,5]
[348225186,1736403038559,-10251.15730022,0.00019178,5]
[348225187,1736403038570,-1099.13135451,0.00019178,5]
[348225630,1736403043348,-183.30827915,0.00019078,2]
[348225632,1736403043358,-826.05030831,0.00019178,5]
[348225638,1736403043405,-12928.53758114,0.00019178,5]
[348225645,1736403043466,-8435.0923457,0.00019178,5]
[348225950,1736403046511,-500.0,0.00019177,2]
[348225952,1736403046520,-5000.12856121,0.00019178,5]
[348226142,1736403060585,159.953056,0.00013973,2]
[348226149,1736403903731,171.955404,0.00013973,2]
[348226152,1736404044120,-923.1618038,0.00018176,2]
[348226153,1736404044143,-936.9984173,0.00018178,2]
[348226154,1736404044165,-156.43070775,0.000189,2]
[348226155,1736404044187,-127.7214933,0.00019078,2]
[348226156,1736404104297,269.85110967,0.00014114,2]
[348226157,1736404106262,275.7221517,0.0001,2]
[348226159,1736404115289,565.9821332,0.000149,2]
[348226160,1736404115632,1000.0,0.0001,2]
[348226164,1736404151256,-82.9708218,0.00019078,2]
[348226165,1736404151277,-156.59754198,0.00019078,2]
[348226166,1736404151297,-53.61318437,0.00019173,2]
[348226167,1736404152351,150.0,0.000189,2]
[348226168,1736404161089,-210.03178391,0.00019173,2]
[348226182,1736404236638,-236.93924577,0.00019173,2]
[348226183,1736404236648,-627.45864256,0.00019177,2]
[348226184,1736404236659,-500.0,0.00019177,2]
[348226185,1736404236669,-205.34557367,0.00019177,2]
[348226186,1736404236721,-304.40874476,0.00019177,2]
[348226187,1736404236731,-500.0,0.00019177,2]
[348226188,1736404236742,-500.0,0.00019177,2]
[348226189,1736404236753,-500.0,0.00019177,2]
[348226190,1736404236762,-500.0,0.00019177,2]
[348226191,1736404236772,-500.0,0.00019177,2]
[348226192,1736404236782,-500.0,0.00019177,2]
[348226193,1736404236792,-500.0,0.00019177,2]
[348226194,1736404236802,-500.0,0.00019177,2]
[348226195,1736404236816,-500.0,0.00019177,2]
[348226196,1736404236831,-268.26760699,0.00019177,2]
[348226197,1736404236841,-355.47247899,0.00019177,2]
[348226198,1736404236851,-500.0,0.00019177,2]
[348226199,1736404236860,-500.0,0.00019177,2]
[348226200,1736404236870,-417.86051913,0.00019177,2]
[348226201,1736404236881,-231.73239301,0.00019177,2]
[348226202,1736404236890,-415.24685948,0.00019177,2]
[348226203,1736404236900,-500.0,0.00019177,2]
[348226204,1736404236910,-500.0,0.00019177,2]
[348226205,1736404236920,-500.0,0.00019177,2]
[348226206,1736404236930,-74.69076517,0.00019177,2]
[348226240,1736404238580,-403.62872591,0.00019177,2]
[348226243,1736404238595,-21.68050892,0.00019177,2]
[348226245,1736404238604,-500.0,0.00019177,2]
[348226247,1736404238613,-500.0,0.00019177,2]
[348226249,1736404238623,-243.75963241,0.00019177,2]
[348226251,1736404238633,-197.45750966,0.00019177,2]
[348226253,1736404238645,-127.03460827,0.00019177,2]
[348226255,1736404238654,-253.70933847,0.00019177,2]
[348226257,1736404238664,-229.28066153,0.00019177,2]
[348226259,1736404238673,-389.97539173,0.00019178,5]
[348226261,1736404238685,-30977.19572253,0.00019178,5]
[348226263,1736404238696,-1005.06539113,0.00019178,5]
[348226270,1736404238754,-22064.03854275,0.00019178,5]
[348226272,1736404238764,-4477.29706993,0.00019178,5]
[348226275,1736404238774,-500.0,0.00019178,2]
[348226276,1736404238783,-500.0,0.00019178,2]
[348226279,1736404238792,-500.0,0.00019178,2]
[348226281,1736404238802,-500.0,0.00019178,2]
[348226283,1736404238811,-500.87449441,0.00019178,2]
[348226285,1736404238821,-500.0,0.00019178,2]
[348226287,1736404238830,-151.0,0.00019178,2]
[348226288,1736404238839,-151.0,0.00019178,2]
[348226291,1736404238849,-151.0,0.00019178,2]
[348226293,1736404238858,-151.0,0.00019178,2]
[348226295,1736404238867,-151.0,0.00019178,2]
[348226297,1736404238876,-500.0,0.00019178,2]
[348226299,1736404238886,-500.0,0.00019178,2]
[348226301,1736404238895,-500.0,0.00019178,2]
[348226303,1736404238904,-500.0,0.00019178,2]
[348226305,1736404238913,-500.0,0.00019178,2]
[348226307,1736404238922,-587.75646739,0.00019178,2]
[348226309,1736404238931,-500.0,0.00019178,2]
[348226311,1736404238940,-500.0,0.00019178,2]
[348226312,1736404238950,-500.0,0.00019178,2]
[348226314,1736404238961,-500.0,0.00019178,2]
[348226316,1736404238970,-81.89240081,0.00019178,2]
[348226792,1736404243626,-418.10759919,0.00019178,2]
[348226794,1736404243636,-500.0,0.00019178,2]
[348226797,1736404243646,-500.0,0.00019178,2]
[348226799,1736404243658,-151.0,0.00019178,2]
[348226801,1736404243668,-500.0,0.00019178,2]
[348226803,1736404243678,-500.0,0.00019178,2]
[348226805,1736404243688,-500.42315959,0.00019178,2]
[348226807,1736404243697,-500.0,0.00019178,2]
[348226809,1736404243706,-500.0,0.00019178,2]
[348226811,1736404243716,-217.4598256,0.00019178,2]
[348227099,1736404246647,-282.5401744,0.00019178,2]
[348227100,1736404246657,-172.13869373,0.00019178,2]
[348227102,1736404246667,-28.31113187,0.00019178,2]
[348227263,1736404260435,97.08711801,0.000182,2]
[348227264,1736404260458,52.91288199,0.000182,2]
[348227265,1736404268684,196.17312917,0.00014987,2]
[348227266,1736404268713,3.82687083,0.00014987,2]
[348227273,1736405091109,183.357633,0.00013973,2]
[348227276,1736405138113,-714.31647778,0.00017699,2]
[348227277,1736405138135,-300.0,0.00017799,2]
[348227278,1736405138156,-67.30905842,0.000178,2]
[348227279,1736405239098,-300.0,0.00017799,2]
[348227280,1736405239121,-559.34188858,0.00017799,2]
[348227281,1736405246087,-5228.46609624,0.00017799,2]
[348227282,1736405246126,-1568.32310003,0.00017799,2]
[348227283,1736405252103,-990.79155168,0.00017799,2]
[348227284,1736405286268,159.0,0.00025,120]
[348227285,1736405346145,-357.1200731,0.0001706,2]
[348227286,1736405346167,-4510.05479673,0.00017698,2]
[348227287,1736405346187,-200.13522116,0.000177,2]
[348227288,1736405346207,-266.20661008,0.00017742,2]
[348227289,1736405346228,-11165.0,0.00017798,2]
[348227290,1736405346250,-300.0,0.00017798,2]
[348227291,1736405346270,-14301.31886065,0.000178,2]
[348227292,1736405346290,-24900.0,0.00017842,2]
[348227293,1736405346310,-250.0,0.00018004,2]
[348227294,1736405346330,-305.7037324,0.00018051,2]
[348227295,1736405346350,-905.76188542,0.00018096,2]
[348227296,1736405373186,-2197.8085168,0.00018059,2]
[348227297,1736405373213,-387.08711558,0.00018096,2]
[348227298,1736405373240,-521.146,0.0001822,2]
[348227299,1736405373266,-196.88112616,0.00018507,2]
[348227354,1736405431976,-69.32548386,0.00018507,2]
[348227356,1736405431986,-300.0,0.00018879,2]
[348227358,1736405431995,-9570.72654024,0.0001888,2]
[348227368,1736405432083,-421.49265646,0.0001888,2]
[348227942,1736405437895,-1153.346855,0.0001888,2]
[348227944,1736405437906,-1500.0,0.0001888,2]
[348227946,1736405437918,-374.39724229,0.0001888,2]
[348227948,1736405437927,-150.0,0.000189,2]
[348227951,1736405437936,-223.2393467,0.00018986,2]
[348227953,1736405437946,-150.0,0.00019059,2]
[348227955,1736405437955,-436.50276335,0.00019078,2]
[348227957,1736405437965,-11342.16906899,0.00019088,2]
[348227963,1736405438014,-611.556,0.00019088,2]
[348227965,1736405438026,-1066.238225,0.00019088,2]
[348227967,1736405438036,-214.7048389,0.000191,2]
[348227969,1736405438045,-153.7772247,0.000191,2]
[348227971,1736405438054,-151.0,0.00019166,2]
[348227973,1736405438064,-500.0,0.00019173,2]
[348227975,1736405438073,-357.89332855,0.00019173,2]
[348227977,1736405438083,-261.84721506,0.00019173,2]
[348227979,1736405438092,-476.51294246,0.00019173,2]
[348227981,1736405438101,-153.16492325,0.00019173,2]
[348227983,1736405438111,-500.0,0.00019173,2]
[348227985,1736405438120,-260.17651092,0.00019173,2]
[348227987,1736405438129,-501.5875837,0.00019173,2]
[348227990,1736405438139,-500.0,0.00019177,2]
[348227993,1736405438148,-500.0,0.00019177,2]
[348227995,1736405438158,-500.0,0.00019177,2]
[348227997,1736405438167,-500.0,0.00019177,2]
[348227999,1736405438176,-500.0,0.00019177,2]
[348228001,1736405438186,-500.0,0.00019177,2]
[348228003,1736405438195,-475.72302406,0.00019177,2]
[348228005,1736405438205,-557.92845051,0.00019177,2]
[348228007,1736405438214,-500.0,0.00019177,2]
[348228009,1736405438224,-500.0,0.00019177,2]
[348228011,1736405438232,-500.0,0.00019177,2]
[348228013,1736405438242,-500.0,0.00019177,2]
[348228015,1736405438251,-500.0,0.00019177,2]
[348228017,1736405438260,-500.0,0.00019177,2]
[348228019,1736405438270,-500.0,0.00019177,2]
[348228021,1736405438280,-500.0,0.00019177,2]
[348228023,1736405438290,-500.0,0.00019177,2]
[348228025,1736405438299,-500.0,0.00019177,2]
[348228027,1736405438309,-500.0,0.00019177,2]
[348228029,1736405438318,-500.0,0.00019177,2]
[348228031,1736405438327,-386.34495141,0.00019177,2]
[348228033,1736405438336,-500.0,0.00019177,2]
[348228035,1736405438346,-391.42539853,0.00019177,2]
[348228037,1736405438355,-502.13693514,0.00019177,2]
[348228039,1736405438364,-499.0,0.00019177,2]
[348228041,1736405438373,-151.0,0.00019177,2]
[348228043,1736405438384,-170.63174269,0.00019177,2]
[348228045,1736405438393,-227.14448255,0.00019177,2]
[348228047,1736405438403,-48043.28184109,0.00019178,5]
[348228049,1736405438413,-7410.05230391,0.00019178,5]
[348228051,1736405438423,-151.0,0.00019178,2]
[348228052,1736405438432,-151.0,0.00019178,2]
[348228053,1736405438441,-151.0,0.00019178,2]
[348228054,1736405438451,-151.0,0.00019178,2]
[348228055,1736405438460,-151.0,0.00019178,2]
[348228057,1736405438469,-151.0,0.00019178,2]
[348228058,1736405438479,-151.0,0.00019178,2]
[348228059,1736405438488,-151.0,0.00019178,2]
[348228060,1736405438497,-151.0,0.00019178,2]
[348228061,1736405438507,-151.0,0.00019178,2]
[348228062,1736405438517,-151.0,0.00019178,2]
[348228063,1736405438531,-175.368216,0.00019178,2]
[348228064,1736405438541,-151.0,0.00019178,2]
[348228065,1736405438550,-151.0,0.00019178,2]
[348228066,1736405438560,-154.503641,0.00019178,2]
[348228067,1736405438570,-151.0,0.00019178,2]
[348228068,1736405438580,-151.0,0.00019178,2]
[348228069,1736405438589,-151.0,0.00019178,2]
[348228070,1736405438598,-151.0,0.00019178,2]
[348228071,1736405438608,-151.0,0.00019178,2]
[348228072,1736405438713,-174.79223,0.00019178,2]
[348228073,1736405438724,-151.0,0.00019178,2]
[348228074,1736405438734,-151.0,0.00019178,2]
[348228075,1736405438743,-151.0,0.00019178,2]
[348228076,1736405438753,-151.0,0.00019178,2]
[348228077,1736405438762,-151.0,0.00019178,2]
[348228078,1736405438771,-151.0,0.00019178,2]
[348228079,1736405438780,-504.48160459,0.00019178,2]
[348228080,1736405438790,-500.71557377,0.00019178,2]
[348228081,1736405438799,-151.0,0.00019178,2]
[348228082,1736405438808,-151.0,0.00019178,2]
[348228083,1736405438817,-151.0,0.00019178,2]
[348228084,1736405438827,-151.0,0.00019178,2]
[348228085,1736405438836,-218.660837,0.00019178,2]
[348228086,1736405438845,-500.0,0.00019178,2]
[348228087,1736405438858,-500.0,0.00019178,2]
[348228088,1736405438867,-500.0,0.00019178,2]
[348228089,1736405438877,-570.41768047,0.00019178,2]
[348228090,1736405438886,-500.0,0.00019178,2]
[348228091,1736405438896,-335.80285353,0.00019178,2]
[348228092,1736405438905,-500.0,0.00019178,2]
[348228093,1736405438915,-301.43684276,0.00019178,2]
[348228094,1736405438924,-500.0,0.00019178,2]
[348228095,1736405438933,-500.0,0.00019178,2]
[348228096,1736405438942,-500.0,0.00019178,2]
[348228097,1736405438952,-169.73789212,0.00019178,2]
[348228098,1736405438966,-336.9543103,0.00019178,2]
[348228099,1736405438975,-500.0,0.00019178,2]
[348228100,1736405438985,-500.0,0.00019178,2]
[348228101,1736405438995,-500.0,0.00019178,2]
[348228102,1736405439004,-500.0,0.00019178,2]
[348228103,1736405439014,-500.0,0.00019178,2]
[348228104,1736405439023,-34224.51023622,0.00019178,2]
[348228199,1736405440000,-628.25251224,0.00019178,2]
[348228499,1736405442789,-176.71377593,0.00019078,2]
[348228501,1736405442799,-2978.90415288,0.00019178,2]
[348228503,1736405442810,-9885.65845442,0.00019178,2]
[348228505,1736405442822,-610.76419513,0.00019178,2]
[348228506,1736405442848,-499.9967325,0.00019178,2]
[348228507,1736405442859,-15224.26399245,0.00019178,2]
[348228804,1736405445842,-176.71377592,0.00019139,2]
[348228806,1736405445852,-102941.6632642,0.00019178,2]
[348228809,1736405445864,-3229.61858,0.00019178,2]
[348228811,1736405445876,-30275.71288106,0.00019178,2]
[348228813,1736405445885,-500.0,0.00019178,2]
[348228815,1736405445895,-500.0,0.00019178,2]
[348228817,1736405445904,-500.0,0.00019178,2]
[348228819,1736405445914,-500.0,0.00019178,2]
[348228821,1736405445923,-500.0,0.00019178,2]
[348228823,1736405445932,-151.0,0.00019178,2]
[348228825,1736405445942,-151.0,0.00019178,2]
[348228827,1736405445951,-151.0,0.00019178,2]
[348228829,1736405445961,-151.0,0.00019178,2]
[348228831,1736405445971,-151.0,0.00019178,2]
[348228833,1736405445980,-151.0,0.00019178,2]
[348228835,1736405445990,-151.0,0.00019178,2]
[348228837,1736405445999,-151.0,0.00019178,2]
[348228839,1736405446009,-151.0,0.00019178,2]
[348228841,1736405446021,-151.0,0.00019178,2]
[348228843,1736405446030,-151.0,0.00019178,2]
[348228845,1736405446039,-151.0,0.00019178,2]
[348228847,1736405446047,-151.0,0.00019178,2]
[348228849,1736405446056,-151.0,0.00019178,2]
[348228851,1736405446066,-151.0,0.00019178,2]
[348228853,1736405446075,-151.0,0.00019178,2]
[348228854,1736405446085,-151.0,0.00019178,2]
[348228856,1736405446094,-151.0,0.00019178,2]
[348228858,1736405446104,-151.0,0.00019178,2]
[348228861,1736405446113,-151.0,0.00019178,2]
[348228863,1736405446122,-151.0,0.00019178,2]
[348228865,1736405446132,-151.0,0.00019178,2]
[348228867,1736405446141,-275.955269,0.00019178,2]
[348228868,1736405446150,-151.0,0.00019178,2]
[348228871,1736405446159,-500.0,0.00019178,2]
[348228873,1736405446169,-500.0,0.00019178,2]
[348228874,1736405446179,-504.60169124,0.00019178,2]
[348228877,1736405446188,-500.0,0.00019178,2]
[348228879,1736405446198,-500.0,0.00019178,2]
[348228880,1736405446208,-500.0,0.00019178,2]
[348228883,1736405446218,-500.0,0.00019178,2]
[348228885,1736405446228,-500.0,0.00019178,2]
[348228887,1736405446238,-167.817351,0.00019178,2]
[348228889,1736405446248,-167.817351,0.00019178,2]
[348228891,1736405446257,-167.817351,0.00019178,2]
[348228893,1736405446270,-167.817351,0.00019178,2]
[348228895,1736405446279,-167.817351,0.00019178,2]
[348228897,1736405446289,-167.817351,0.00019178,2]
[348228899,1736405446298,-167.817351,0.00019178,2]
[348228901,1736405446307,-167.817351,0.00019178,2]
[348228903,1736405446317,-167.817351,0.00019178,2]
[348228905,1736405446327,-167.817351,0.00019178,2]
[348228907,1736405446336,-167.817351,0.00019178,2]
[348228909,1736405446346,-167.817351,0.00019178,2]
[348228910,1736405446355,-167.817351,0.00019178,2]
[348228913,1736405446364,-167.817351,0.00019178,2]
[348228914,1736405446373,-167.817351,0.00019178,2]
[348228916,1736405446382,-167.817351,0.00019178,2]
[348228919,1736405446392,-167.817351,0.00019178,2]
[348228921,1736405446401,-167.817351,0.00019178,2]
[348228923,1736405446410,-167.817351,0.00019178,2]
[348228925,1736405446419,-167.817355,0.00019178,2]
[348228926,1736405446428,-151.0,0.00019178,2]
[348228929,1736405446438,-201.25655,0.00019178,2]
[348228930,1736405446447,-645.42,0.00019178,2]
[348228933,1736405446456,-151.0,0.00019178,2]
[348228934,1736405446465,-151.0,0.00019178,2]
[348228936,1736405446475,-151.0,0.00019178,2]
[348228938,1736405446484,-151.0,0.00019178,2]
[348228940,1736405446493,-151.0,0.00019178,2]
[348228943,1736405446502,-151.0,0.00019178,2]
[348228945,1736405446512,-199.085895,0.00019178,2]
[348228947,1736405446521,-151.0,0.00019178,2]
[348228949,1736405446536,-199.085895,0.00019178,2]
[348228951,1736405446546,-151.0,0.00019178,2]
[348228953,1736405446555,-199.085895,0.00019178,2]
[348228955,1736405446565,-151.0,0.00019178,2]
[348228957,1736405446575,-199.085895,0.00019178,2]
[348228958,1736405446584,-151.0,0.00019178,2]
[348228959,1736405446593,-199.085895,0.00019178,2]
[348228960,1736405446603,-151.0,0.00019178,2]
[348228961,1736405446614,-199.085895,0.00019178,2]
[348228962,1736405446624,-151.0,0.00019178,2]
[348228963,1736405446634,-199.085895,0.00019178,2]
[348228964,1736405446643,-199.085895,0.00019178,2]
[348228965,1736405446653,-151.0,0.00019178,2]
[348228966,1736405446663,-151.0,0.00019178,2]
[348228967,1736405446672,-151.0,0.00019178,2]
[348228968,1736405446681,-151.0,0.00019178,2]
[348228969,1736405446691,-199.085895,0.00019178,2]
[348228970,1736405446701,-151.0,0.00019178,2]
[348228971,1736405446710,-199.085895,0.00019178,2]
[348228972,1736405446720,-165.291176,0.00019178,2]
[348228973,1736405446730,-199.085895,0.00019178,2]
[348228975,1736405446739,-199.085895,0.00019178,2]
[348228977,1736405446748,-199.085895,0.00019178,2]
[348228979,1736405446758,-199.085895,0.00019178,2]
[348228981,1736405446769,-199.085895,0.00019178,2]
[348228983,1736405446778,-199.085895,0.00019178,2]
[348228985,1736405446788,-508.15482916,0.00019178,2]
[348228987,1736405446797,-500.0,0.00019178,2]
[348228989,1736405446806,-601.24,0.00019178,2]
[348228991,1736405446815,-500.0,0.00019178,2]